bitfinex/quotes_BTCUSD_20241009
["timestamp","ask_amount","ask_price","bid_price","bid_amount"]
[1728471307005,2.8e-07,62205.0,62204.0,0.57283087]
[1728471308403,2.8e-07,62205.0,62204.0,0.71744557]
[1728471309955,0.00082028,62205.0,62204.0,0.71744557]
[1728471310847,0.00082028,62205.0,62204.0,0.71744556]
[1728471311119,0.00082028,62205.0,62204.0,0.74777989]
[1728471311341,0.00082028,62205.0,62204.0,0.67247989]
[1728471311556,0.00082028,62205.0,62204.0,0.52786519]
[1728471312459,2.8e-07,62205.0,62204.0,0.70206519]
[1728471312920,2.8e-07,62205.0,62204.0,0.70206518]
[1728471316678,2.8e-07,62205.0,62204.0,0.70206517]
[1728471320461,2.8e-07,62205.0,62204.0,0.52786517]
[1728471326066,2.8e-07,62205.0,62204.0,0.67243818]
[1728471327104,2.8e-07,62205.0,62204.0,0.52786516]
[1728471327334,2.8e-07,62205.0,62204.0,0.27153604]
[1728471327556,2.8e-07,62205.0,62204.0,0.19922872]
[1728471327801,2.8e-07,62205.0,62204.0,0.15101739]
[1728471328274,2.8e-07,62205.0,62204.0,0.15101738]
[1728471328491,2.8e-07,62205.0,62204.0,0.27245171]
[1728471332339,0.00367275,62205.0,62204.0,0.27245171]
[1728471338834,2.8e-07,62205.0,62204.0,0.27245171]
[1728471339057,0.00367275,62205.0,62204.0,0.27245171]
[1728471341364,0.00367275,62205.0,62204.0,0.2724517]
[1728471353502,0.00367275,62205.0,62204.0,0.27245169]
[1728471354646,0.00367275,62205.0,62204.0,0.15101736]
[1728471356718,0.00367275,62205.0,62204.0,0.27245169]
[1728471363168,0.00367275,62205.0,62204.0,0.3206203]
[1728471363381,0.00367275,62205.0,62204.0,0.32062029]
[1728471363852,0.00367275,62205.0,62204.0,0.19918596]
[1728471364077,0.00367275,62205.0,62204.0,0.27245168]
[1728471365405,0.00367275,62205.0,62204.0,0.32062029]
[1728471365826,0.00367275,62205.0,62204.0,0.32065396]
[1728471367401,0.00367275,62205.0,62204.0,0.27245167]
[1728471369328,0.00367275,62205.0,62204.0,0.34475509]
[1728471371081,0.00367275,62205.0,62204.0,0.22332076]
[1728471371281,0.00367275,62205.0,62204.0,0.15101734]
[1728471371454,0.00367275,62205.0,62204.0,0.22332076]
[1728471372458,0.00367275,62205.0,62204.0,0.15101734]
[1728471372660,0.00367275,62205.0,62204.0,0.15101733]
[1728471373101,0.00741021,62205.0,62204.0,0.15101733]
[1728471373326,0.00741021,62205.0,62204.0,0.19930291]
[1728471373573,0.00741021,62205.0,62204.0,0.14684649]
[1728471373574,0.12389123,62205.0,62204.0,0.14684649]
[1728471374028,0.21194065,62205.0,62204.0,0.14684649]
[1728471374938,0.21294065,62205.0,62204.0,0.15684649]
[1728471375361,0.21194065,62205.0,62204.0,0.15684649]
[1728471375592,0.21194065,62205.0,62204.0,0.16684649]
[1728471378702,0.19365963,62205.0,62204.0,0.16684649]
[1728471379394,0.19365963,62205.0,62204.0,0.16684648]
[1728471388735,0.19865963,62205.0,62204.0,0.02368548]
[1728471389415,0.19865963,62205.0,62204.0,0.18444648]
[1728471390578,0.19865963,62205.0,62204.0,0.02368548]
[1728471390801,0.26810587,62205.0,62204.0,0.02368548]
[1728471392102,0.26810587,62205.0,62204.0,0.18444648]
[1728471394347,0.26810587,62205.0,62204.0,0.02368548]
[1728471394565,0.26810587,62205.0,62204.0,0.18444648]
[1728471396855,0.26810587,62205.0,62204.0,0.02368548]
[1728471399904,0.27010587,62205.0,62204.0,0.02368548]
[1728471400091,0.26810587,62205.0,62204.0,0.02368548]
[1728471401429,0.26810587,62205.0,62204.0,0.18444648]
[1728471401658,0.19865963,62205.0,62204.0,0.02368548]
[1728471403468,0.11825963,62205.0,62204.0,0.18444648]
[1728471405092,0.02005963,62205.0,62204.0,0.18444647]
[1728471405308,0.02005963,62205.0,62204.0,0.02368547]
[1728471412785,0.02005963,62205.0,62204.0,0.02368547]
[1728471418788,0.04525634,62205.0,62204.0,0.02368547]
[1728471420295,0.20601434,62205.0,62204.0,0.02368547]
[1728471424782,0.04525634,62205.0,62204.0,0.02368547]
[1728471424999,0.04151888,62205.0,62204.0,0.02368547]
[1728471425232,0.04151888,62205.0,62204.0,0.18444647]
[1728471426759,0.04151888,62205.0,62204.0,0.02368547]
[1728471426959,0.04151888,62205.0,62204.0,0.18444647]
[1728471427324,0.04151888,62205.0,62204.0,0.02368547]
[1728471432332,0.04525634,62205.0,62204.0,0.02368547]
[1728471432528,0.20601434,62205.0,62204.0,0.02368547]
[1728471435273,0.34476128,62205.0,62204.0,0.02368547]
[1728471435543,0.34102382,62205.0,62204.0,0.02368547]
[1728471439471,0.38923317,62205.0,62204.0,0.02368547]
[1728471454729,0.25048623,62205.0,62204.0,0.02368547]
[1728471455059,0.25422369,62205.0,62204.0,0.02368547]
[1728471459576,0.20227688,62205.0,62204.0,0.02368547]
[1728471462391,0.20601434,62205.0,62204.0,0.02368547]
[1728471463821,0.25423322,62205.0,62204.0,0.02368547]
[1728471464029,0.261827,62205.0,62204.0,0.02368547]
[1728471464233,0.21360812,62205.0,62204.0,0.02368547]
[1728471464452,0.21360812,62205.0,62204.0,0.02368546]
[1728471464663,0.26182706,62205.0,62204.0,0.02368546]
[1728471465037,0.53482676,62205.0,62204.0,0.02368546]
[1728471465246,0.68650274,62205.0,62204.0,0.02368546]
[1728471465448,0.6382838,62205.0,62204.0,0.02368546]
[1728471466068,0.9376838,62205.0,62204.0,0.01368546]
[1728471466514,0.9376838,62205.0,62204.0,0.02168546]
[1728471467479,0.9376838,62205.0,62204.0,0.01168546]
[1728471467697,0.9376838,62205.0,62204.0,0.00668546]
[1728471468110,0.9396838,62205.0,62204.0,0.00368546]
[1728471468538,0.9416838,62205.0,62204.0,0.00468546]
[1728471468989,0.9446838,62205.0,62204.0,0.00568546]
[1728471488898,0.9466838,62205.0,62204.0,0.00568546]
[1728471499486,0.5916841,62205.0,62204.0,0.00568546]
[1728471499718,0.5916841,62205.0,62204.0,0.10278546]
[1728471499719,0.54441194,62205.0,62204.0,0.10278546]
[1728471499950,0.3722841,62205.0,62204.0,0.17878546]
[1728471500168,0.3722841,62205.0,62204.0,0.17878545]
[1728471500608,0.3692841,62205.0,62204.0,0.17778545]
[1728471500872,0.3652841,62205.0,62204.0,0.17678545]
[1728471501105,0.3672841,62205.0,62204.0,0.17678545]
[1728471501320,0.21487066,62205.0,62204.0,0.17678545]
[1728471503311,0.26295757,62205.0,62204.0,0.17678545]
[1728471504422,0.26669503,62205.0,62204.0,0.17678545]
[1728471505332,0.26669503,62205.0,62204.0,0.17678544]
[1728471507236,0.21860812,62205.0,62204.0,0.17678544]
[1728471509314,0.2907758,62205.0,62204.0,0.17678544]
[1728471513787,0.29079941,62205.0,62204.0,0.17678544]
[1728471515579,0.29079941,62205.0,62204.0,0.17678543]
[1728471516460,0.2656027,62205.0,62204.0,0.17678543]
[1728471516683,0.2908016,62205.0,62204.0,0.17678543]
[1728471518967,0.21861031,62205.0,62204.0,0.17678543]
[1728471528977,0.21861031,62205.0,62204.0,0.00368543]
[1728471533311,0.29078563,62205.0,62204.0,0.00368543]
[1728471534238,0.29079503,62205.0,62204.0,0.00368543]
[1728471538407,0.21861031,62205.0,62204.0,0.00368543]
[1728471538914,0.21861031,62205.0,62204.0,0.10198543]
[1728471539131,0.26674381,62205.0,62204.0,0.10198543]
[1728471539549,0.23780745,62205.0,62204.0,0.10198543]
[1728471540001,0.23654491,62205.0,62204.0,0.10198543]
[1728471540231,0.23280745,62205.0,62204.0,0.10198543]
[1728471540494,0.23280745,62205.0,62204.0,0.26274643]
[1728471540495,0.02391595,62205.0,62204.0,0.26274643]
[1728471540781,0.02391595,62205.0,62204.0,0.26274642]
[1728471543260,0.02391595,62205.0,62204.0,0.18038542]
[1728471546029,0.30610828,62205.0,62204.0,0.08208542]
[1728471546242,0.44209646,62205.0,62204.0,0.00368542]
[1728471546495,0.438359,62205.0,62204.0,0.00368542]
[1728471554183,0.44436652,62205.0,62204.0,0.00368542]
[1728471554393,0.60477996,62205.0,62204.0,0.00368542]
[1728471554671,0.32793219,62205.0,62204.0,0.00368542]
[1728471554878,0.02992347,62205.0,62204.0,0.00368542]
[1728471555048,0.02992347,62205.0,62204.0,0.24594642]
[1728471560792,0.02992347,62205.0,62204.0,0.24594641]
[1728471561963,0.02992347,62205.0,62204.0,0.08518541]
[1728471562200,0.02992347,62205.0,62204.0,0.24594641]
[1728471562624,0.02992347,62205.0,62204.0,0.08518541]
[1728471566250,0.02992347,62205.0,62204.0,0.24594641]
[1728471568879,0.02992347,62205.0,62204.0,0.08518541]
[1728471574431,0.19068147,62205.0,62204.0,0.08518541]
[1728471574781,0.19068147,62205.0,62204.0,0.00368541]
[1728471579293,0.29032163,62205.0,62204.0,0.00368541]
[1728471581232,0.28658417,62205.0,62204.0,0.00368541]
[1728471583379,0.33471557,62205.0,62204.0,0.00368541]
[1728471583606,0.33474916,62205.0,62204.0,0.00368541]
[1728471583783,0.23884646,62205.0,62204.0,0.00368541]
[1728471584762,0.19068147,62205.0,62204.0,0.00368541]
[1728471584995,0.23885438,62205.0,62204.0,0.00368541]
[1728471585444,0.24259184,62205.0,62204.0,0.00368541]
[1728471585669,0.23885438,62205.0,62204.0,0.00368541]
[1728471588527,0.23885643,62205.0,62204.0,0.00368541]
[1728471592294,0.24259389,62205.0,62204.0,0.00368541]
[1728471592509,0.23885643,62205.0,62204.0,0.00368541]
[1728471597785,0.24259389,62205.0,62204.0,0.00368541]
[1728471598821,0.24259286,62205.0,62204.0,0.00368541]
[1728471600544,0.36402719,62205.0,62204.0,0.00368541]
[1728471600776,0.3843767,62205.0,62204.0,0.00368541]
[1728471601215,0.4095748,62205.0,62204.0,0.00368541]
[1728471601722,0.19068147,62205.0,62204.0,0.00368541]
[1728471601946,0.19441893,62205.0,62204.0,0.00368541]
[1728471603305,0.24260422,62205.0,62204.0,0.00368541]
[1728471604528,0.19441893,62205.0,62204.0,0.00368541]
[1728471604995,0.24260574,62205.0,62204.0,0.00368541]
[1728471605213,0.19441893,62205.0,62204.0,0.00368541]
[1728471605410,0.26669382,62205.0,62204.0,0.00368541]
[1728471607999,0.50010726,62205.0,62204.0,0.00368541]
[1728471608225,0.4963698,62205.0,62204.0,0.00368541]
[1728471608455,0.52156838,62205.0,62204.0,0.00368541]
[1728471608699,0.44929349,62205.0,62204.0,0.00368541]
[1728471608975,0.53939349,62205.0,62204.0,0.00368541]
[1728471609182,0.69480693,62205.0,62204.0,0.00368541]
[1728471610932,0.81526508,62205.0,62204.0,0.00368541]
[1728471612484,0.69480693,62205.0,62204.0,0.00368541]
[1728471614554,0.55772953,62205.0,62204.0,0.00368541]
[1728471614766,0.46139349,62205.0,62204.0,0.00368541]
[1728471615001,0.37129349,62205.0,62204.0,0.00368541]
[1728471615904,0.35004277,62205.0,62204.0,0.00368541]
[1728471616119,0.35603003,62205.0,62204.0,0.00368541]
[1728471616344,0.42828624,62205.0,62204.0,0.00368541]
[1728471616528,0.35603003,62205.0,62204.0,0.00368541]
[1728471617019,0.42828624,62205.0,62204.0,0.00368541]
[1728471617475,0.35603003,62205.0,62204.0,0.00368541]
[1728471617947,0.42828822,62205.0,62204.0,0.00368541]
[1728471621488,0.42829228,62205.0,62204.0,0.00368541]
[1728471621736,0.35603003,62205.0,62204.0,0.00368541]
[1728471630625,0.42832383,62205.0,62204.0,0.00368541]
[1728471632601,0.58373727,62205.0,62204.0,0.00368541]
[1728471633450,0.42832383,62205.0,62204.0,0.00368541]
[1728471635283,0.35603003,62205.0,62204.0,0.00368541]
[1728471636739,0.45238737,62205.0,62204.0,0.00368541]
[1728471637167,0.35603003,62205.0,62204.0,0.00368541]
[1728471637370,0.45242441,62205.0,62204.0,0.00368541]
[1728471637581,0.60783785,62205.0,62204.0,0.00368541]
[1728471639672,0.45242441,62205.0,62204.0,0.00368541]
[1728471642120,0.45243174,62205.0,62204.0,0.00368541]
[1728471648165,0.35603003,62205.0,62204.0,0.00368541]
[1728471649069,0.47653217,62205.0,62204.0,0.00368541]
[1728471654768,0.47653217,62205.0,62204.0,0.00368541]
[1728471657216,0.31577417,62205.0,62204.0,0.00368541]
[1728471657634,0.19527203,62205.0,62204.0,0.00368541]
[1728471657822,0.19900949,62205.0,62204.0,0.00368541]
[1728471658188,0.19600949,62205.0,62204.0,0.00368541]
[1728471658417,0.29343063,62205.0,62204.0,0.00368541]
[1728471658661,0.36477734,62205.0,62204.0,0.00368541]
[1728471658899,0.26461874,62205.0,62204.0,0.00368541]
[1728471659102,0.2703562,62205.0,62204.0,0.00368541]
[1728471659335,0.5791562,62205.0,62204.0,0.00368541]
[1728471659553,0.57341874,62205.0,62204.0,0.00368541]
[1728471660180,0.57541874,62205.0,62204.0,0.00368541]
[1728471660406,0.57241874,62205.0,62204.0,0.00368541]
[1728471660643,0.57541874,62205.0,62204.0,0.00468541]
[1728471660875,0.57241874,62205.0,62204.0,0.00368541]
[1728471661126,0.54722016,62205.0,62204.0,0.00368541]
[1728471661368,0.55022016,62205.0,62204.0,0.00468541]
[1728471661606,0.54822016,62205.0,62204.0,0.00468541]
[1728471661849,0.55322016,62205.0,62204.0,0.00568541]
[1728471662313,0.54822016,62205.0,62204.0,0.00468541]
[1728471663308,0.55822016,62205.0,62204.0,0.00568541]
[1728471664229,0.55622016,62205.0,62204.0,0.00568541]
[1728471664468,0.55322016,62205.0,62204.0,0.00468541]
[1728471664691,0.55322016,62205.0,62204.0,0.00368541]
[1728471664692,0.54522016,62205.0,62204.0,0.00368541]
[1728471664967,0.56222016,62205.0,62204.0,0.00568541]
[1728471665425,0.56222016,62205.0,62204.0,0.00468541]
[1728471665426,0.55122016,62205.0,62204.0,0.00468541]
[1728471665874,0.56222016,62205.0,62204.0,0.00568541]
[1728471669412,0.70658316,62205.0,62204.0,0.00568541]
[1728471670337,0.70657224,62205.0,62204.0,0.00568541]
[1728471672438,0.56222016,62205.0,62204.0,0.00568541]
[1728471672705,0.70657224,62205.0,62204.0,0.00568541]
[1728471674093,0.70857224,62205.0,62204.0,0.00568541]
[1728471675491,0.56422016,62205.0,62204.0,0.00568541]
[1728471675708,0.70657224,62205.0,62204.0,0.00568541]
[1728471677828,0.56222016,62205.0,62204.0,0.00568541]
[1728471678107,0.70657224,62205.0,62204.0,0.00568541]
[1728471679219,0.56222016,62205.0,62204.0,0.00568541]
[1728471680472,0.70646656,62205.0,62204.0,0.00568541]
[1728471680736,0.70646746,62205.0,62204.0,0.00568541]
[1728471686577,0.56222016,62205.0,62204.0,0.00568541]
[1728471686804,0.70645814,62205.0,62204.0,0.00568541]
[1728471687287,0.56222016,62205.0,62204.0,0.00568541]
[1728471687508,0.70645814,62205.0,62204.0,0.00568541]
[1728471688410,0.56222016,62205.0,62204.0,0.00568541]
[1728471688638,0.68365449,62205.0,62204.0,0.00568541]
[1728471689766,0.82789495,62205.0,62204.0,0.00568541]
[1728471691159,0.68365449,62205.0,62204.0,0.00568541]
[1728471691602,0.68375449,62205.0,62204.0,0.00568541]
[1728471691820,0.10227247,62196.0,62195.0,0.2397794]
[1728471692019,0.50212024,62196.0,62195.0,0.2397794]
[1728471692268,0.50918405,62196.0,62195.0,0.2397794]
[1728471692497,0.00867247,62192.0,62191.0,0.00164]
[1728471692714,0.3122577,62192.0,62191.0,0.00164]
[1728471692925,0.37061142,62192.0,62191.0,0.00164]
[1728471693147,0.36687396,62192.0,62191.0,0.00164]
[1728471698367,0.41495983,62192.0,62191.0,0.00164]
[1728471698567,0.42300163,62192.0,62191.0,0.00164]
[1728471699024,0.47108751,62192.0,62191.0,0.00164]
[1728471699241,0.37491576,62192.0,62191.0,0.00164]
[1728471701312,0.49514415,62192.0,62191.0,0.00164]
[1728471701543,0.69144415,62192.0,62191.0,0.00164]
[1728471701771,0.57121576,62192.0,62191.0,0.00164]
[1728471701991,0.64721576,62192.0,62191.0,0.00164]
[1728471703757,0.65021576,62192.0,62191.0,0.00164]
[1728471703890,0.65321576,62192.0,62191.0,0.00164]
[1728471704109,0.65021576,62192.0,62191.0,0.00164]
[1728471704314,0.64721576,62192.0,62191.0,0.00164]
[1728471704512,0.65721576,62192.0,62191.0,0.00164]
[1728471704768,0.66621576,62192.0,62191.0,0.00164]
[1728471708040,0.54478143,62192.0,62191.0,0.00164]
[1728471708262,0.66621576,62192.0,62191.0,0.00164]
[1728471712497,0.59021576,62192.0,62191.0,0.00164]
[1728471716576,0.49391576,62192.0,62191.0,0.00164]
[1728471718128,0.66341576,62192.0,62191.0,0.00164]
[1728471718342,0.49391576,62192.0,62191.0,0.00164]
[1728471718996,0.37248143,62192.0,62191.0,0.00164]
[1728471719210,0.32118928,62192.0,62191.0,0.00164]
[1728471719429,0.44262361,62192.0,62191.0,0.00164]
[1728471721577,0.46782887,62192.0,62191.0,0.00164]
[1728471722449,0.10306585,62192.0,62191.0,0.10034]
[1728471722665,0.02973404,62192.0,62191.0,0.10034]
[1728471723346,0.01973404,62192.0,62191.0,0.10034]
[1728471723588,0.01073404,62192.0,62191.0,0.17954]
[1728471723829,0.01573404,62192.0,62191.0,0.17954]
[1728471724046,0.01073404,62192.0,62191.0,0.17954]
[1728471724510,0.02273404,62192.0,62191.0,0.17954]
[1728471724737,0.01906157,62192.0,62191.0,0.17954]
[1728471724965,0.01006157,62192.0,62191.0,0.17954]
[1728471725218,0.01006157,62192.0,62191.0,0.18275538]
[1728471725448,0.003,62192.0,62191.0,0.18275538]
[1728471725664,0.00367247,62197.0,62191.0,0.00485538]
[1728471725879,0.00367247,62197.0,62192.0,0.1719]
[1728471726093,0.00703542,62196.0,62194.0,0.1686]
[1728471726301,0.00703542,62196.0,62193.0,0.0768]
[1728471726512,0.00703542,62196.0,62195.0,0.0768]
[1728471726756,0.00703542,62196.0,62195.0,0.1686]
[1728471727006,0.00367247,62197.0,62195.0,0.1686]
[1728471727242,0.007037,62196.0,62195.0,0.1686]
[1728471729834,0.00367247,62197.0,62192.0,0.1745]
[1728471730233,0.00367247,62197.0,62196.0,0.1745]
[1728471731092,0.00467247,62197.0,62196.0,0.1745]
[1728471731540,0.00367247,62197.0,62196.0,0.1745]
[1728471731777,0.01070963,62197.0,62196.0,0.1745]
[1728471731962,0.00467247,62197.0,62196.0,0.1745]
[1728471732394,0.0127099,62197.0,62196.0,0.1745]
[1728471732893,0.0137099,62197.0,62196.0,0.1745]
[1728471733766,0.01003743,62197.0,62196.0,0.1745]
[1728471733979,0.0137099,62197.0,62196.0,0.1745]
[1728471734626,0.00667247,62197.0,62196.0,0.1745]
[1728471734836,0.00567247,62197.0,62196.0,0.1745]
[1728471735043,0.00667247,62197.0,62196.0,0.1745]
[1728471735257,0.00467247,62197.0,62196.0,0.1745]
[1728471735474,0.00367247,62197.0,62196.0,0.1745]
[1728471735715,0.00467247,62197.0,62196.0,0.1745]
[1728471735929,0.00367247,62197.0,62196.0,0.1745]
[1728471737020,0.00367247,62197.0,62196.0,0.1755]
[1728471738077,0.00367247,62197.0,62196.0,0.1765]
[1728471738743,0.00367247,62199.0,62196.0,0.1765]
[1728471738957,0.00367247,62197.0,62196.0,0.1765]
[1728471739370,0.00367247,62197.0,62196.0,0.17788581]
[1728471739823,0.00367247,62197.0,62196.0,0.17688581]
[1728471740521,0.00367247,62197.0,62196.0,0.17588581]
[1728471741172,0.00367247,62197.0,62196.0,0.17688581]
[1728471741747,0.00367247,62197.0,62196.0,0.17788581]
[1728471746086,0.00367247,62198.0,62196.0,0.17788581]
[1728471746301,0.00367247,62199.0,62198.0,0.0964]
[1728471747270,0.00367247,62201.0,62198.0,0.0964]
[1728471747523,0.00367247,62202.0,62199.0,0.29834926]
[1728471747770,0.00082,62204.0,62203.0,0.0975]
[1728471747999,0.00082,62204.0,62203.0,0.10071475]
[1728471748693,0.00082,62204.0,62203.0,0.17811475]
[1728471749613,0.00082,62204.0,62203.0,0.17911475]
[1728471749853,0.00082,62204.0,62203.0,0.18111475]
[1728471750069,0.00482,62204.0,62203.0,0.18111475]
[1728471750280,0.00482,62204.0,62203.0,0.17911475]
[1728471750510,0.00082,62204.0,62203.0,0.17911475]
[1728471750943,0.00082,62204.0,62203.0,0.18011475]
[1728471754553,0.00082,62204.0,62203.0,0.17828576]
[1728471754781,0.00082,62204.0,62203.0,0.17828575]
[1728471757466,0.00082,62204.0,62203.0,0.17828574]
[1728471759001,0.00082,62204.0,62203.0,0.17828573]
[1728471762626,0.00082,62204.0,62203.0,0.17828572]
[1728471763061,0.00082,62204.0,62203.0,0.00502572]
[1728471779046,0.00082,62204.0,62203.0,0.00824053]
[1728471779905,0.00082,62204.0,62203.0,0.00502572]
[1728471782357,0.00082,62204.0,62203.0,0.00402572]
[1728471782839,0.00795279,62204.0,62203.0,0.00402572]
[1728471783070,0.00795279,62204.0,62203.0,0.00302572]
[1728471783278,0.00895279,62204.0,62203.0,0.00702572]
[1728471783733,0.00895279,62204.0,62203.0,0.00602572]
[1728471784180,0.00995279,62204.0,62203.0,0.01102572]
[1728471793652,0.00282,62204.0,62203.0,0.01102572]
[1728471794347,0.00282,62204.0,62203.0,0.0261188]
[1728471797238,0.00282,62204.0,62203.0,0.01102572]
[1728471797477,0.00282,62204.0,62203.0,0.02611886]
[1728471798071,0.00282,62204.0,62203.0,0.11811886]
[1728471798482,0.00282,62204.0,62203.0,0.12133358]
[1728471798691,0.00282,62204.0,62203.0,0.12133357]
[1728471799982,0.00282,62204.0,62203.0,0.19733357]
[1728471800715,0.00282,62204.0,62203.0,0.18224043]
[1728471800866,0.00282,62204.0,62203.0,0.19732967]
[1728471801955,0.00282,62204.0,62203.0,0.19732951]
[1728471802201,0.00282,62204.0,62203.0,0.24560657]
[1728471802606,0.00282,62204.0,62203.0,0.27174256]
[1728471802834,0.00182,62204.0,62203.0,0.422156]
[1728471803050,0.00082,62204.0,62203.0,0.44007315]
[1728471803307,0.00182,62204.0,62203.0,0.44507314]
[1728471803521,0.00282,62204.0,62203.0,0.42492439]
[1728471803743,0.00182,62204.0,62203.0,0.42092439]
[1728471804178,0.00182,62204.0,62203.0,0.42091566]
[1728471804639,0.00282,62204.0,62203.0,0.40077736]
[1728471804868,0.00282,62204.0,62203.0,0.40077735]
[1728471805325,0.00182,62204.0,62203.0,0.39577735]
[1728471805549,0.00282,62204.0,62203.0,0.40577735]
[1728471806445,0.00282,62204.0,62203.0,0.35751962]
[1728471806677,0.00282,62204.0,62203.0,0.40576862]
[1728471806888,0.00282,62204.0,62203.0,0.42991565]
[1728471807124,0.00282,62204.0,62203.0,0.42991564]
[1728471807332,0.00282,62204.0,62203.0,0.42989115]
[1728471807571,0.00282,62204.0,62203.0,0.41481064]
[1728471807790,0.00282,62204.0,62203.0,0.42987351]
[1728471808016,0.00282,62204.0,62203.0,0.42987349]
[1728471809625,0.00282,62204.0,62203.0,0.35751199]
[1728471809874,0.00282,62204.0,62203.0,0.45400737]
[1728471810328,0.00282,62204.0,62203.0,0.45395144]
[1728471810567,0.00182,62204.0,62203.0,0.47413121]
[1728471810750,0.00282,62204.0,62203.0,0.48013121]
[1728471811000,0.00182,62204.0,62203.0,0.47413121]
[1728471811444,0.00282,62204.0,62203.0,0.34351198]
[1728471811631,0.00282,62204.0,62203.0,0.46413121]
[1728471811832,0.00282,62204.0,62203.0,0.46904318]
[1728471812168,0.00282,62204.0,62203.0,0.34351198]
[1728471812576,0.00582,62204.0,62203.0,0.34351198]
[1728471813543,0.00582,62204.0,62203.0,0.44351198]
[1728471813768,0.00582,62204.0,62203.0,0.4448395]
[1728471814206,0.00582,62204.0,62203.0,0.44482615]
[1728471818458,0.00582,62204.0,62203.0,0.56523415]
[1728471820952,0.00582,62204.0,62203.0,0.55017461]
[1728471821208,0.00582,62204.0,62203.0,0.56522268]
[1728471822362,0.00582,62204.0,62203.0,0.44481468]
[1728471824412,0.00582,62204.0,62203.0,0.42976661]
[1728471824844,0.00582,62204.0,62203.0,0.44481656]
[1728471827542,0.00582,62204.0,62203.0,0.56516845]
[1728471827993,0.00582,62204.0,62203.0,0.42976661]
[1728471828221,0.00582,62204.0,62203.0,0.52604529]
[1728471828450,0.00582,62204.0,62203.0,0.54110039]
[1728471830314,0.00582,62204.0,62203.0,0.44482171]
[1728471830741,0.00582,62204.0,62203.0,0.54110057]
[1728471831334,0.00582,62204.0,62203.0,0.52604547]
[1728471831539,0.00582,62204.0,62203.0,0.44483115]
[1728471834678,0.00582,62204.0,62203.0,0.4297666]
[1728471834885,0.00582,62204.0,62203.0,0.44483599]
[1728471835113,0.00020028,62205.0,62204.0,0.00332753]
[1728471835348,0.00020028,62205.0,62204.0,0.37469945]
[1728471835526,0.00020028,62205.0,62204.0,0.37148524]
[1728471836420,0.00420028,62205.0,62204.0,0.49091957]
[1728471836683,0.00420028,62205.0,62204.0,0.48959204]
[1728471837117,0.00420028,62205.0,62204.0,0.39330279]
[1728471837328,0.00420028,62205.0,62204.0,0.44145643]
[1728471838298,0.00820028,62205.0,62204.0,0.42638704]
[1728471838538,0.00820028,62205.0,62204.0,0.4414642]
[1728471840179,0.00820028,62205.0,62204.0,0.32002987]
[1728471840353,0.00820028,62205.0,62204.0,0.27187623]
[1728471840807,0.10060028,62205.0,62204.0,0.27187623]
[1728471841433,0.10700002,62205.0,62204.0,0.27187623]
[1728471842137,0.10300002,62205.0,62204.0,0.27187623]
[1728471842348,0.09900002,62205.0,62204.0,0.27787623]
[1728471842566,0.09900002,62205.0,62204.0,0.27987623]
[1728471842567,0.09260028,62205.0,62204.0,0.27987623]
[1728471842806,0.09260028,62205.0,62204.0,0.27787623]
[1728471843051,0.09260028,62205.0,62204.0,0.27187623]
[1728471843296,0.09360028,62205.0,62204.0,0.13846279]
[1728471843530,0.1000005,62205.0,62204.0,0.03846279]
[1728471843769,0.1000005,62205.0,62204.0,0.02338563]
[1728471844251,0.1000005,62205.0,62204.0,0.03846014]
[1728471845236,0.09360028,62205.0,62204.0,0.03846014]
[1728471845819,0.10000086,62205.0,62204.0,0.03846014]
[1728471846212,0.10000086,62205.0,62204.0,0.03846013]
[1728471847162,0.10000086,62205.0,62204.0,0.03845443]
[1728471847835,0.09360028,62205.0,62204.0,0.03845443]
[1728471848310,0.10000137,62205.0,62204.0,0.03845443]
[1728471848550,0.09360028,62205.0,62204.0,0.03845443]
[1728471850457,0.09360028,62205.0,62204.0,0.02338562]
[1728471850717,0.09360028,62205.0,62204.0,0.03844798]
[1728471851866,0.00120028,62205.0,62204.0,0.03844798]
[1728471852141,0.00760137,62205.0,62204.0,0.03844798]
[1728471854174,0.00760137,62205.0,62204.0,0.04008798]
[1728471854378,0.00120028,62205.0,62204.0,0.04008798]
[1728471857226,0.22183461,62205.0,62204.0,0.04008849]
[1728471857465,0.22183461,62205.0,62204.0,0.02502562]
[1728471857676,0.3051266,62205.0,62204.0,0.02502562]
[1728471859287,0.30879907,62205.0,62204.0,0.02502562]
[1728471860591,0.30879907,62205.0,62204.0,0.01402562]
[1728471861047,0.30879907,62205.0,62204.0,0.02302562]
[1728471861048,0.30979907,62205.0,62204.0,0.02302562]
[1728471861288,0.30879907,62205.0,62204.0,0.01202562]
[1728471861509,0.30879907,62205.0,62204.0,0.00302562]
[1728471861510,0.30779907,62205.0,62204.0,0.00302562]
[1728471861761,0.30779907,62205.0,62204.0,0.00702562]
[1728471862212,0.31153653,62205.0,62204.0,0.01102562]
[1728471862429,0.30779907,62205.0,62204.0,0.01102562]
[1728471865079,0.33857898,62205.0,62204.0,0.01102562]
[1728471865323,0.49899242,62205.0,62204.0,0.01102562]
[1728471865546,0.67010184,62205.0,62204.0,0.01102562]
[1728471865772,0.69415655,62205.0,62204.0,0.01102562]
[1728471866008,0.69415655,62205.0,62204.0,0.00302562]
[1728471866217,0.69409798,62205.0,62204.0,0.00602562]
[1728471866444,0.72121126,62205.0,62204.0,0.00602562]
[1728471866656,0.71821126,62205.0,62204.0,0.00602562]
[1728471866881,0.72721126,62205.0,62204.0,0.00702562]
[1728471867323,0.70306479,62205.0,62204.0,0.00702562]
[1728471867542,0.70306479,62205.0,62204.0,0.00402562]
[1728471867787,0.71206479,62205.0,62204.0,0.00502562]
[1728471868021,0.63999242,62205.0,62204.0,0.00502562]
[1728471868256,0.63099242,62205.0,62204.0,0.00402562]
[1728471868490,0.62199242,62205.0,62204.0,0.00402562]
[1728471868725,0.63999242,62205.0,62204.0,0.00502562]
[1728471869185,0.68800849,62205.0,62204.0,0.00502562]
[1728471869838,0.6880088,62205.0,62204.0,0.00502562]
[1728471870283,0.63999242,62205.0,62204.0,0.00502562]
[1728471872274,0.62199242,62205.0,62204.0,0.00302562]
[1728471872714,0.63999242,62205.0,62204.0,0.00502562]
[1728471872932,0.63999242,62205.0,62204.0,0.00402562]
[1728471873140,0.64799242,62205.0,62204.0,0.00502562]
[1728471874004,0.63899242,62205.0,62204.0,0.00402562]
[1728471874433,0.64699242,62205.0,62204.0,0.00502562]
[1728471876397,0.67219273,62205.0,62204.0,0.00502562]
[1728471876616,0.67419273,62205.0,62204.0,0.00502562]
[1728471876833,0.67219273,62205.0,62204.0,0.00502562]
[1728471877481,0.67419273,62205.0,62204.0,0.00502562]
[1728471877707,0.67219273,62205.0,62204.0,0.00502562]
[1728471878150,0.67419273,62205.0,62204.0,0.00502562]
[1728471880487,0.86626306,62205.0,62204.0,0.00502562]
[1728471880685,0.30257247,62204.0,62203.0,0.00164]
[1728471880890,0.76294202,62204.0,62203.0,0.00164]
[1728471881097,0.7663135,62204.0,62203.0,0.00164]
[1728471881309,0.7643135,62204.0,62203.0,0.00164]